Cogmind - Beta 14 @@@ ROGUE MODE // 2024.08.14 @ 07:53:03 Player: Minty Result: Destroyed by 96-H0R(R) with Subdweller Laser Performance ------------- Evolutions (0) 0 Regions Visited (2) 400 Robots Destroyed (51) 255 Value Destroyed (1221) 1221 Prototype IDs (1) 20 Alien Tech Used (0) 0 Bonus (75) 75 TOTAL SCORE: 1971 Bonus ------- High Alert Combat Kills 75 Cogmind --------- Core Integrity 0/250 Matter 200/300 Energy 250/250 System Corruption 0% Temperature Cool (6) Movement Treading (160) Location -10/Subcaves Parts ------- > --- POWER (1) -------- Ion Engine > --- PROPULSION (2) --- Light Treads Light Treads > --- UTILITY (2) ------ Large Storage Unit Hardened Light Armor Plating > --- WEAPON (2) ------- Barrage Gun Grenade Launcher > --- INVENTORY (15) --- Ion Engine Light Treads Light Treads Wheel Compact Wheel Compact Wheel Hardened Light Armor Plating Hardened Light Armor Plating Shield Generator Shield Generator Hacking Suite Subdweller Beam Cannon Battle Rifle Subdweller Machine Gun Flail Peak State ------------ > --- POWER ------------ Ion Engine > --- PROPULSION ------- Light Treads Light Treads > --- UTILITY ---------- Large Storage Unit Hardened Light Armor Plating > --- WEAPON ----------- Improved EM Shotgun Improved EM Shotgun > --- INVENTORY -------- Ion Engine Ion Engine Ion Engine Light Treads Light Treads Compact Wheel Compact Wheel Weight Redist. System Hardened Light Armor Plating Hardened Light Armor Plating Hardened Light Armor Plating Shield Generator Shield Generator Shield Generator Shield Generator [Rating: 14] Favorites ----------- Power Ion Engine Engine Ion Engine Propulsion Light Treads Treads Light Treads Leg Aluminum Leg Utility Hardened Light Armor Plating Storage Large Storage Unit Protection Hardened Light Armor Plating Weapon Improved EM Shotgun Energy Gun Improved EM Shotgun Energy Cannon Subdweller Beam Cannon Ballistic Gun Barrage Gun Launcher Grenade Launcher Impact Weapon Flail Build | -11 -10 -10 ------- Run | Yrd Mat Sub Slots Evolved . | . . . Power . | . . . Propulsion . | . . . Utility . | . . . Weapon . | . . . Parts Attached 28 | . 18 10 Power 4 | . 3 1 Engine 4 | . 3 1 Core . | . . . Reactor . | . . . Propulsion 6 | . 4 2 Treads 6 | . 4 2 Leg . | . . . Wheel . | . . . Hover . | . . . Flight . | . . . Utility 5 | . 4 1 Device . | . . . Storage 2 | . 2 . Processor . | . . . Hackware . | . . . Protection 3 | . 2 1 Artifact . | . . . Weapon 13 | . 7 6 Energy Gun 5 | . 5 . Energy Cannon 1 | . . 1 Ballistic Gun 4 | . 1 3 Ballistic Cannon . | . . . Launcher 2 | . . 2 Special Weapon . | . . . Impact Weapon 1 | . 1 . Slashing Weapon . | . . . Piercing Weapon . | . . . Special Melee Weapon . | . . . Unidentified Prototypes 1 | . 1 . Parts Lost 3 | . 1 2 Power . | . . . Propulsion 1 | . . 1 Utility . | . . . Weapon 2 | . 1 1 Highest Loss Streak 1 | . 1 1 To Critical Strikes . | . . . Average Slot Usage (%) 98 | . 99 97 Engine 14 | . 14 14 Treads 27 | . 27 28 Storage 14 | . 14 14 Protection 13 | . 13 14 Energy Gun 10 | . 18 3 Energy Cannon 1 | . . 2 Ballistic Gun 10 | . 5 15 Impact Weapon 3 | . 3 3 Peak Build Rating 14 | 6 14 13 Average Rating 12 | 6 12 12 On Entrance 8 | 6 6 13 Naked Turns . | . . . Heaviest Build 41 | 14 36 41 Greatest Support 40 | 20 40 40 Greatest Overweight (x) 1 | . . 1 Average Overweight (x) . | . . . Largest Inventory Capacity 15 | 8 15 15 Average Capacity 14 | 8 14 15 Most Carried 15 | 6 15 15 Average Carried 14 | 6 13 14 Final Capacity 15 | 8 15 15 Final Carried 15 | 6 15 15 Class Distribution -------------------- 100% | Mutant Dominant Class ---------------- Mutant | -10/Materials Mutant | -10/Subcaves Resources | -11 -10 -10 ----------- Run | Yrd Mat Sub Matter Collected 876 | 200 294 382 Remotely . | . . . Salvage Created 1629 | . 1073 556 Parts 104 | . 72 32 Haulers Intercepted 2 | . 2 . Recyclers Shooed 3 | . 3 . Parts Field Recycled . | . . . Retrieved Matter . | . . . Parts Self-Destructed 11 | . . 11 Prevented 1 | . . 1 Kills | -11 -10 -10 ------- Run | Yrd Mat Sub Combat Hostiles Destroyed 36 | . 26 10 Melee 1 | . 1 . Guns 22 | . 18 4 Cannons 1 | . . 1 AOE 9 | . 5 4 Classes Destroyed 12 | . 9 3 Worker 3 | . 3 . Builder 3 | . 3 . Tunneler 3 | . 3 . Hauler 2 | . 2 . Mechanic 1 | . 1 . Operator 2 | . 2 . Watcher 1 | . 1 . Swarmer 9 | . 9 . Grunt 19 | . 17 2 Sentry 1 | . . 1 Artisan 1 | . . 1 Subdweller 7 | . . 7 Best Kill Streak 4 | . 4 2 Combat Bots Only 4 | . 4 2 Max Kills in Single Turn 2 | . 2 1 Gunslinging . | . . . Exploded 2 | . 2 1 Melee 1 | . 1 . Uniques/NPCs Destroyed . | . . . Combat | -11 -10 -10 -------- Run | Yrd Mat Sub Hostile Shots Fired 175 | . 136 39 Missed 48 | . 37 11 Damage Taken 1809 | . 1178 631 Core 251 | . 106 145 Absorbed by Shields . | . . . Regen/Repaired (Parts) 230 | . 230 . Core Remaining (%) 100 | 100 . . Volleys Fired 118 | . 61 57 Largest 2 | . 2 2 Hottest 105 | . 90 105 Shots Fired 220 | . 118 102 Gun 207 | . 118 89 Cannon 4 | . . 4 Launcher 9 | . . 9 Special . | . . . Kinetic 124 | . 41 83 Thermal 21 | . 17 4 Explosive 9 | . . 9 Electromagnetic 66 | . 60 6 Robot Hit Streak 30 | . 10 30 Robot Miss Streak 6 | . 6 2 Penetration Max . | . . . Secondary Targets 4 | . 4 . Max Gunslinging Chain 1 | . 1 . Shots Hit Robots 155 | . 82 73 Core Hits 76 | . 52 24 Critical Kills . | . . . Critical Parts Destroyed 3 | . 3 . Critical Strikes 4 | . 3 1 Destroy 1 | . . 1 Smash 3 | . 3 . Melee Attacks 22 | . 18 4 Impact 22 | . 18 4 Slashing . | . . . Piercing . | . . . Sneak Attacks 6 | . 5 1 Combat Hostiles . | . . . Follow-up Attacks . | . . . Damage Inflicted 3814 | . 2219 1595 Guns 2113 | . 1150 963 Cannons 80 | . . 80 Explosions 843 | . 405 438 Melee 712 | . 598 114 Ramming 66 | . 66 . Kinetic 1188 | . 332 856 Thermal 657 | . 515 142 Explosive 376 | . . 376 Electromagnetic 815 | . 708 107 Impact 712 | . 598 114 Slashing . | . . . Piercing . | . . . Highest Corruption . | . . . Average Corruption . | . . . Corruption Purged . | . . . Corruption Blocked . | . . . Overload Shots . | . . . Overflow Damage 383 | . 369 14 Projectiles . | . . . Explosions 74 | . 74 . Melee 309 | . 295 14 Knockbacks 4 | . 2 2 Impact 4 | . 2 2 Kinetic . | . . . Secondary . | . . . Self-Inflicted Damage 163 | . 128 35 Shots 6 | . 3 3 Rammed 11 | . 11 . Targets Rammed 14 | . 14 . Kicked . | . . . Crushed 3 | . 3 . Highest Temperature 329 | . 329 39 Average Temperature 113 | . 115 24 Received Heat Transfer 594 | . 459 135 Effects 3 | . 3 . Energy Bleed 1 | . 1 . Interference 1 | . 1 . Matter Decay 1 | . 1 . Siege Activations . | . . . Robots Corrupted 4 | . 2 2 Combat Hostiles 3 | . 2 1 Parts Fried 14 | . 10 4 Impact Corruptions 10 | . 8 2 Robots Melted . | . . . Combat Hostiles . | . . . Parts Melted . | . . . Heat Transferred 761 | . 600 161 Parts Sabotaged . | . . . Parts Stolen . | . . . Parts Stripped . | . . . Power Chain Reactions 6 | . 5 1 Alert | -11 -10 -10 ------- Run | Yrd Mat Sub Peak Influence 527 | . 527 . Initial . | . . . Average 290 | . 293 . Maximum Alert Level 2 | . 2 . Low Security (%) 34 | 100 34 . Level 1 30 | . 31 . Level 2 34 | . 34 . Level 3 . | . . . Level 4 . | . . . Level 5 . | . . . High Security . | . . . Max Security . | . . . Squads Dispatched 8 | . 8 . Investigation 6 | . 6 . Extermination . | . . . Reinforcement 2 | . 2 . Assault . | . . . Garrison . | . . . Intercept . | . . . Searches Triggered . | . . . Construction Impeded . | . . . Haulers Reinforced . | . . . Active Scanning Responses . | . . . Cargo Convoy Interrupts . | . . . Stealth | -11 -10 -10 --------- Run | Yrd Mat Sub Distress Signals 3 | . 3 . Communications Jammed . | . . . Distress Signals . | . . . Times Spotted 54 | . 42 12 Peak Tracking Total 5 | . 5 2 Tactical Retreats 2 | . 2 . Traps | -11 -10 -10 ------- Run | Yrd Mat Sub Traps Triggered 2 | . 1 1 Indirectly . | . . . Trap Hack Attempts . | . . . Triggered . | . . . Disarmed . | . . . Reprogrammed . | . . . Reused . | . . . Traps Extracted . | . . . Installed . | . . . Triggered . | . . . Objects Rigged 3 | . 3 . Exploded 1 | . 1 . Machines | -11 -10 -10 ---------- Run | Yrd Mat Sub Machines Disabled 3 | . 3 . Max in Single Turn 2 | . 2 . Machines Repaired . | . . . Machines Dismantled . | . . . Machines Sabotaged . | . . . Overloaded Fab Kills . | . . . Hacking | -11 -10 -10 --------- Run | Yrd Mat Sub Machines Accessed 8 | . 8 . Terminals 6 | . 6 . Fabricators . | . . . Repair Stations 1 | . 1 . Recycling Units 1 | . 1 . Scanalyzers . | . . . Garrison Access . | . . . Total Hacks 31 | . 31 . Successful 13 | . 13 . Failed 18 | . 18 . Catastrophic 1 | . 1 . Database Lockouts . | . . . Manual 19 | . 19 . Terminals 21 | . 21 . Fabricators . | . . . Repair Stations 7 | . 7 . Recycling Units 3 | . 3 . Scanalyzers . | . . . Garrison Access . | . . . Terminal Hacks 5 | . 5 . Terminal Index 1 | . 1 . Alert Level 1 | . 1 . Locate Traps 1 | . 1 . Recall Investigation 1 | . 1 . Zone Layout 1 | . 1 . Fabricator Hacks . | . . . Repair Station Hacks 4 | . 4 . Scan Component 2 | . 2 . Repair 2 | . 2 . Recycling Unit Hacks 1 | . 1 . Report Inventory 1 | . 1 . Scanalyzer . | . . . Garrison Access Hacks . | . . . Unauthorized Hacks 3 | . 3 . Terminals 2 | . 2 . Detonate 1 | . 1 . Operators 1 | . 1 . Fabricators . | . . . Repair Stations 1 | . 1 . Patch 1 | . 1 . Recycling Units . | . . . Scanalyzers . | . . . Garrison Access . | . . . Data Cores Recovered . | . . . Used . | . . . Hacking Detections 8 | . 8 . Full Trace Events 3 | . 3 . Feedback Events . | . . . Feedback Blocked . | . . . Robot Schematics Acquired . | . . . Robots Built . | . . . Authchips . | . . . Time . | . . . Total Robot Build Rating . | . . . Part Schematics Acquired . | . . . Parts Built . | . . . Authchips . | . . . Time . | . . . Total Part Build Rating . | . . . Parts Repaired 2 | . 2 . Time 58 | . 58 . Parts Recycled . | . . . Recycled Matter . | . . . Retrieved Matter . | . . . Retrieved Components . | . . . Parts Scanalyzed . | . . . Part Schematics Acquired . | . . . Parts Damaged . | . . . Bothacking | -11 -10 -10 ------------ Run | Yrd Mat Sub Used RIF Installer . | . . . Robots Hacked . | . . . Non-combat . | . . . Combat . | . . . Robot Hacks Applied . | . . . Relay Couplers Released . | . . . Fabnet Peak Effective % . | . . . Robots Rewired . | . . . Allies Hacked . | . . . Hacks Repelled . | . . . Allies | -11 -10 -10 -------- Run | Yrd Mat Sub Total Allies . | . . . Largest Group . | . . . Highest-Rated Group . | . . . Highest-Rated Ally . | . . . Total Orders . | . . . Ally Attacks . | . . . Total Damage . | . . . Kills . | . . . Allies Corrupted . | . . . Allies Melted . | . . . Intel | -11 -10 -10 ------- Run | Yrd Mat Sub Robot Analysis Total . | . . . Derelict Logs Recovered 1 | . . 1 Drone Launches . | . . . Drone Recoveries . | . . . Exploration | -11 -10 -10 ------------- Run | Yrd Mat Sub Turns Passed 3118 | 15 1480 1623 Spaces Moved 1486 | 13 697 776 Core . | . . . Treads 1459 | . 683 776 Legs 27 | 13 14 . Wheels . | . . . Hover . | . . . Flight . | . . . Fastest Speed 120 | 120 120 160 Average Speed 160 | 120 159 162 Slowest Speed 240 | 120 160 240 Overloaded Moves . | . . . Propulsion Burnouts . | . . . Robots Hopped . | . . . Cave-ins Triggered . | . . . Exploration Rate (%) 45 | 2 82 51 Regions Visited 2 Branch Regions 1 Pre-discovered Areas 1 | . . 1 Known Exits Taken . | . . . Unknown Exits Taken 2 | 1 1 . Scrap Searched . | . . . Spaces Dug . | . . . Terrain Destroyed 86 | . 40 46 Melee . | . . . Projectile . | . . . AOE 86 | . 40 46 Terrain Rammed . | . . . Walls Destroyed . | . . . Machines Disabled . | . . . Actions | -11 -10 -10 --------- Run | Yrd Mat Sub Total 1963 | 12 919 1032 Wait 128 | . 78 50 Move 1484 | 12 696 776 Hop . | . . . Pick Up 19 | . 16 3 Fast Attach 7 | . 6 1 Attach 4 | . 3 1 Detach 1 | . 1 . Swap 17 | . 9 8 Drop 22 | . 17 5 Fire 118 | . 61 57 Melee 22 | . 18 4 Ram . | . . . Kick . | . . . Crush 14 | . 14 . Escape Stasis . | . . . Rewire 127 | . . 127 Trap . | . . . Miscellaneous . | . . . Route ------- -11/Scrapyard -10/Materials (discovered 4 exits: [*Mat] / [*Min x2] / [*Sub]) -10/Subcaves (discovered 1 exit: [*Mat]) History --------- Turn | Location | Event 1 | -11/Scrapyard | Discovered new exit (range 2) 16 | -11/Scrapyard | Entered Materials 281 | -10/Materials | Discovered new exit (range 6) 285 | -10/Materials | Discovered new exit (range 12) 311 | -10/Materials | Build established: Mutant 578 | -10/Materials | Repaired Hrd. Light Armor Plating 606 | -10/Materials | Repaired Lgt. Treads 829 | -10/Materials | Discovered new exit (range 9) 987 | -10/Materials | Discovered new exit (range 15) 1496 | -10/Materials | Entered Subcaves 1741 | -10/Subcaves | Core integrity fell below 50% 1776 | -10/Subcaves | Discovered new exit (range 8) 2176 | -10/Subcaves | Shifting Twisted Machinery released Battle Rifle 2200 | -10/Subcaves | Shifting Twisted Machinery released Barrage Gun 3108 | -10/Subcaves | Core integrity fell below 20% 3118 | -10/Subcaves | Ambushed by Subdweller buried in earth 3119 | -10/Subcaves | Destroyed by 96-H0R(R) with Subdweller Laser Last Messages --------------- 02814_ Subatomizers dissect the Sub. Optics. 02833_ RM-OO7(R) destroyed. 02842_ Acquired 44 matter. 02846_ Acquired 51 matter. 02911_ 0D-G4Q(R) suffers critical hit (Destroy). 02920_ 0D-G4Q(R) destroyed. 02922_ Acquired 37 matter. 02977_ Subatomizers dissect the Disposable Heat Sink. 03007_ 47-QW4(R) destroyed. 03020_ BW-V95(R) destroyed. 03023_ Acquired 84 matter. 03034_ Dropped Ion Engine. 03034_ Acquired Sub. Machine Gun. 03040_ Acquired 10 matter. 03055_ Subatomizers dissect the Sub. Optics. 7O-5CO(R) emerges from concealment. 03088_ Acquired 1 matter. 03112_ 9I-9M1(R) destroyed. 03118_ 7O-5CO(R) destroyed. 03119_ 96-H0R(R): "ARGHSUB!" Map ----- +----------------------------------------------------+ | ???????????????????????????????????##????????????? | | ?????????????????????????????????????????????????? | | ?????????????????????????????????????????????????? | | ??????????????????##?????????????????????????????? | | ?????????????????? #???????????####??????????????? | | ?????????????????? ## ?????????# ##?????????????? | | ?????????????????? ??????????# ##????????????? | | ?????????????????? ???????????# ##???????????? | | ???####??????##### ####????????# #???????????? | | ??# ######?# ????????## #???????????? | | ## ## ### ????????## #???????????? | | ## ?????????# #???????????? | | ### #??????????# #???????????? | | ## # #?# ############ #???????????? | | ## #?## # # # # ## ##???????????? | | ##?## #?## %& #????????????? | | ### ### = #????????????? | | ### # #### !# #????????????? | | ## ##??## ##????????????? | | # ####???? # ##?????????????? | | & #???????# ##??????????????? | | " "=!####???## # #???????????????? | | ## " &&%" #???# R%* ### #???????????????? | | ##### "&*&!& #???## * ### " ??????????????? | | ????# # "=&" #???# " #?# "" ????????????? | | ????#####& & ##?? #""" @ ### " #??????????? | | ????????# * ### """""" ###" ##??????????? | | ????????# "#"""" "" #? ##???????????? | | ????????## " """ " "" " ##????????????? | | ????????## """"""" " ##"""#?????????????? | | ????????# # ## "" "" ###??"???????????????? | | ????????# ####?#"" ####????????????????????? | | ????????### #?????#"""""#???????????????????????? | | ??????????####??????### ????????????????????????? | | ??????????????????????# #????????????????????????? | | ??????????????????????##?????????????????????????? | | ?????????????????????????????????????????????????? | | ?????????????????????????????????????????????????? | | ?????????????????????????????????????????????????? | | ?????????????????????????????????????????????????? | | ?????????????????????????????????????????????????? | | ?????????????????????????????????????????????????? | | ?????????????????????????????????????????????????? | | ?????????????????????????????????????????????????? | | ?????????????????????????????????????????????????? | | ?????????????????????????????????????????????????? | | ?????????????????????????????????????????????????? | | ?????????????????????????????????????????????????? | | ?????????????????????????????????????????????????? | | ?????????????????????????????????????????????????? | +----------------------------------------------------+ Best States ------------- Heat Dissipation 25 Energy Generation 10 Energy Capacity 250 Matter Stores 300 Matter Capacity 300 Sight Range 16 Terrain Scan Density 10 Armor Coverage 150 Evasion (%) 45 Recoil Reduction 2 Item Schematics ----------------- None Robot Schematics ------------------ None Fabricated ------------ Nothing Alien Tech Used ----------------- None Achievements -------------- None Challenges ------------ None Game ------ Seed LinkedContainmentStatue Manual? 0 Play Time 00:16:13 Cumulative 859.0 hours Start 2024.08.13 @ 23:13:47 End 2024.08.14 @ 07:53:03 Sessions 2 Manual Loads 0 Difficulty Rogue Special Mode None Game No. 1032 Rogue 753 Adventurer 124 Explorer 155 Win Type - Total 36 Types 28/0/6/1/0/0/0/1/0 Lore% 75 Gallery% 89 Achievement% 78 Wizard Run 0 Options --------- Layout 0 ASCII 0 Keyboard 1 Movement Numpad Keybinds 0 Fullscreen 2 Font 18/Smallcaps Map View 76x50 Zoom Use 1% Tactical HUD 1 Map Filters NONE Filters NONE Steam 1 RUN: c4e94d0e-625f-49b7-8973-84e58392cb4f